[Event "FIDE Open Sachove Univerzity QCC"]
[Site "Ceske Budejovice"]
[Date "2020.07.02"]
[Round "2.14"]
[White "Macho, Miloslav"]
[Black "Kral, Ladislav"]
[Result "1-0"]
[ECO "D02"]
[WhiteElo "1671"]
[BlackElo "1493"]
[Annotator "NA"]
[PlyCount "71"]
[EventDate "2020.07.01"]
[EventType "swiss"]
[EventCountry "CZE"]
[SourceTitle "playchess.com"]
[Source "ChessBase"]
[SourceQuality "1"]
[TimeControl "40/5400+30:1800+30"]

1. g3 {[%emt 0:01:21]} Nf6 {[%emt 0:00:34]} 2. Bg2 {[%emt 0:00:06]} d5 {[%emt 0:00:55]} 3. d4 {[%emt 0:01:25]} e6 {[%emt 0:00:38]} 4. Nf3 {[%emt 0:00:17]} Bd6 {[%emt 0:03:01]} 5. O-O {[%emt 0:00:42]} O-O {[%emt 0:00:41]} 6. Nbd2 {[%emt 0:04:01]} c5 {[%emt 0:04:50]} 7. c3 {[%emt 0:02:34]} Nc6 {[%emt 0:01:27]} 8. Nb3 {[%emt 0:03:27]} c4 {[%emt 0:01:24]} 9. Nbd2 {[%emt 0:00:06]} b5 {[%emt 0:00:55]} 10. Re1 {[%emt 0:01:35]} Bb7 {[%emt 0:05:06]} 11. e4 {[%emt 0:02:50]} dxe4 {[%emt 0:01:35]} 12. Ng5 {[%emt 0:05:08]} Ne7 {[%emt 0:13:50]} 13. Ndxe4 {[%emt 0:01:32]} Nxe4 {[%emt 0:03:56]} 14. Nxe4 {[%emt 0:00:22]} Bxe4 {[%emt 0:07:39]} 15. Rxe4 {[%emt 0:03:12]} Ng6 {[%emt 0:04:12]} 16. h4 {[%emt 0:02:18]} Ne7 {[%emt 0:03:35]} 17. Bg5 {[%emt 0:08:31]} Qc7 {[%emt 0:02:32]} 18. h5 {[%emt 0:09:15]} Nd5 {[%emt 0:02:38]} 19. Qd2 {[%emt 0:05:27]} Be7 {[%emt 0:01:42]} 20. Rg4 {[%emt 0:01:30]} Rad8 {[%emt 0:09:19]} 21. Re1 {[%emt 0:12:03]} Nf6 {[%emt 0:05:18]} 22. Bxf6 {[%emt 0:04:44]} Bxf6 {[%emt 0:00:13]} 23. Qh6 {[%emt 0:00:40]} Kh8 {[%emt 0:01:46]} 24. Qe3 {[%emt 0:00:28]} Qe7 {[%emt 0:09:06]} 25. f4 {[%emt 0:04:22]} Qc7 {[%emt 0:00:52]} 26. Be4 {[%emt 0:00:49]} Bxd4 {[%emt 0:03:44]} 27. cxd4 {[%emt 0:00:22]} f5 {[%emt 0:00:38]} 28. Bxf5 {[%emt 0:00:33]} exf5 {[%emt 0:00:39]} 29. Rg5 {[%emt 0:00:22]} Qd7 {[%emt 0:01:17]} 30. h6 {[%emt 0:03:38]} g6 {[%emt 0:00:48]} 31. Rd1 {[%emt 0:05:46]} Rfe8 {[%emt 0:00:24]} 32. Qf3 {[%emt 0:01:33]} Re4 {[%emt 0:00:35]} 33. d5 {[%emt 0:00:30]} Rde8 {[%emt 0:00:34]} 34. Qc3+ {[%emt 0:00:10]} Kg8 {[%emt 0:00:30]} 35. Kh2 {[%emt 0:01:40]} Qd6 {[%emt 0:01:25]} 36. Qg7# {[%emt 0:00:09]} 1-0

[Event "FIDE Open Sachove Univerzity QCC"]
[Site "Ceske Budejovice"]
[Date "2020.07.02"]
[Round "2.16"]
[White "Matlocha, Lubomir"]
[Black "Kamleiter, Noah"]
[Result "1-0"]
[ECO "E21"]
[WhiteElo "1646"]
[BlackElo "1463"]
[Annotator "NA"]
[PlyCount "51"]
[EventDate "2020.07.01"]
[EventType "swiss"]
[EventCountry "CZE"]
[SourceTitle "playchess.com"]
[Source "ChessBase"]
[SourceQuality "1"]
[TimeControl "40/5400+30:1800+30"]

1. d4 {[%emt 0:00:00]} Nf6 {[%emt 0:00:00]} 2. c4 {[%emt 0:00:09]} e6 {[%emt 0:00:23]} 3. Nc3 {[%emt 0:00:20]} Bb4 {[%emt 0:00:31]} 4. Bd2 {[%emt 0:00:23]} O-O {[%emt 0:01:19]} 5. Nf3 {[%emt 0:01:57]} b6 {[%emt 0:00:19]} 6. e3 {[%emt 0:01:07]} Bb7 {[%emt 0:01:22]} 7. Be2 {[%emt 0:01:06]} d6 {[%emt 0:00:01]} 8. O-O {[%emt 0:00:39]} Nbd7 {[%emt 0:00:10]} 9. a3 {[%emt 0:01:02]} Bxc3 {[%emt 0:03:36]} 10. Bxc3 {[%emt 0:00:18]} Ne4 {[%emt 0:00:02]} 11. Qc2 {[%emt 0:00:15]} Rc8 {[%emt 0:00:32]} 12. b4 {[%emt 0:08:04]} f5 {[%emt 0:16:30]} 13. Rad1 {[%emt 0:00:01]} Qf6 {[%emt 0:06:58]} 14. Bb2 {[%emt 0:04:52]} Qg6 {[%emt 0:03:25]} 15. Ne1 {[%emt 0:04:03]} Rf6 {[%emt 0:22:28]} 16. d5 {[%emt 0:14:44]} e5 {[%emt 0:11:47]} 17. f4 {[%emt 0:01:30]} c6 {[%emt 0:13:23]} 18. Nf3 {[%emt 0:10:56]} Qe8 {[%emt 0:03:58]} 19. fxe5 {[%emt 0:11:31]} dxe5 {[%emt 0:01:17]} 20. Qb3 {[%emt 0:02:16]} cxd5 {[%emt 0:02:32]} 21. cxd5 {[%emt 0:06:11]} Rd6 {[%emt 0:00:29]} 22. Bb5 {[%emt 0:00:43]} Nef6 {[%emt 0:01:15]} 23. Nxe5 {[%emt 0:02:27]} Bxd5 {[%emt 0:00:52]} 24. Rxd5 {[%emt 0:01:11]} Nxd5 {[%emt 0:01:22]} 25. Rd1 {[%emt 0:00:17]} Rc3 {[%emt 0:01:20]} 26. Bxc3 {[%emt 0:03:36]} 1-0

[Event "FIDE Open Sachove Univerzity QCC"]
[Site "Ceske Budejovice"]
[Date "2020.07.02"]
[Round "2.17"]
[White "Vojtek, Pavel"]
[Black "Veverka, Vladimir"]
[Result "0-1"]
[ECO "B22"]
[WhiteElo "1292"]
[BlackElo "1644"]
[Annotator "NA"]
[PlyCount "44"]
[EventDate "2020.07.01"]
[EventType "swiss"]
[EventCountry "CZE"]
[SourceTitle "playchess.com"]
[Source "ChessBase"]
[SourceQuality "1"]
[TimeControl "40/5400+30:1800+30"]

1. e4 {[%emt 0:00:00]} e6 {[%emt 0:00:00]} 2. d4 {[%emt 0:00:00]} d5 {[%emt 0:00:00]} 3. exd5 {[%emt 0:00:10]} exd5 {[%emt 0:00:16]} 4. Bd3 {[%emt 0:00:36]} c5 {[%emt 0:00:24]} 5. Nf3 {[%emt 0:01:00]} Nc6 {[%emt 0:01:54]} 6. c3 {[%emt 0:01:30]} Nf6 {[%emt 0:00:34]} 7. O-O {[%emt 0:01:22]} Bg4 {[%emt 0:01:14]} 8. Re1+ {[%emt 0:01:35]} Be7 {[%emt 0:00:25]} 9. dxc5 {[%emt 0:01:18]} O-O {[%emt 0:01:15]} 10. Be3 {[%emt 0:01:38]} Nd7 {[%emt 0:14:54]} 11. b4 {[%emt 0:10:47]} a5 {[%emt 0:01:06]} 12. a3 {[%emt 0:01:26]} axb4 {[%emt 0:03:15]} 13. Bb5 {[%emt 0:12:07]} Nxc5 {[%emt 0:06:41]} 14. Bxc6 {[%emt 0:05:04]} bxc6 {[%emt 0:00:19]} 15. cxb4 {[%emt 0:03:16]} Bxf3 {[%emt 0:04:28]} 16. gxf3 {[%emt 0:04:02]} Ne6 {[%emt 0:00:56]} 17. Nd2 {[%emt 0:01:10]} d4 {[%emt 0:01:00]} 18. Bxd4 {[%emt 0:10:14]} Qxd4 {[%emt 0:01:43]} 19. Qc2 {[%emt 0:04:36]} Bxb4 {[%emt 0:03:13]} 20. Nb3 {[%emt 0:16:35]} Qc3 {[%emt 0:00:46]} 21. Rec1 {[%emt 0:00:50]} Qxc2 {[%emt 0:01:15]} 22. Rxc2 {[%emt 0:00:18]} Rxa3 {[%emt 0:00:41]} 0-1

[Event "FIDE Open Sachove Univerzity QCC"]
[Site "Ceske Budejovice"]
[Date "2020.07.02"]
[Round "2.18"]
[White "Zelbova, Lada"]
[Black "Stary, Vojtech"]
[Result "1-0"]
[ECO "D02"]
[WhiteElo "1637"]
[BlackElo "1422"]
[Annotator "NA RC"]
[PlyCount "109"]
[EventDate "2020.07.01"]
[EventType "swiss"]
[EventCountry "CZE"]
[SourceTitle "playchess.com"]
[Source "ChessBase"]
[SourceQuality "1"]
[TimeControl "40/5400+30:1800+30"]

1. d4 {[%emt 0:00:00]} d5 {[%emt 0:00:00]} 2. Bf4 {[%emt 0:00:00]} Nf6 {[%emt 0:00:00]} 3. e3 {[%emt 0:00:00]} e6 {[%emt 0:00:00]} 4. Nf3 {[%emt 0:00:09]} Bd6 {[%emt 0:00:12]} 5. Nbd2 {[%emt 0:00:14]} Bxf4 {[%emt 0:00:52]} 6. exf4 {[%emt 0:00:05]} O-O {[%emt 0:01:03]} 7. Bd3 {[%emt 0:01:02]} Nbd7 {[%emt 0:01:47]} 8. O-O {[%emt 0:01:26]} b6 {[%emt 0:01:19]} 9. Ne5 {[%emt 0:05:14]} Bb7 {[%emt 0:03:11]} 10. Qe2 {[%emt 0:09:49]} c5 {[%emt 0:02:35]} 11. c3 {[%emt 0:00:16]} Qc7 {[%emt 0:04:19]} 12. Rae1 {[%emt 0:01:05]} Rac8 {[%emt 0:02:49]} 13. g4 {[%emt 0:02:42]} cxd4 {[%emt 0:08:08]} 14. cxd4 {[%emt 0:00:09]} Qd6 {[%emt 0:02:07]} 15. a3 {[%emt 0:11:20]} Rc7 {[%emt 0:02:50]} 16. g5 {[%emt 0:15:31]} Ne8 {[%emt 0:04:14]} 17. Qh5 {[%emt 0:01:11]} g6 {[%emt 0:00:59]} 18. Qh6 {[%emt 0:00:33]} Ng7 {[%emt 0:02:39]} 19. Re3 {[%emt 0:02:42]} Rfc8 {[%emt 0:02:56]} 20. Rh3 {[%emt 0:06:40]} Nf8 {[%emt 0:02:22]} 21. Ng4 {[%emt 0:00:59]} f5 {[%emt 0:05:23]} 22. gxf6 {[%emt 0:08:26]} Nf5 {[%emt 0:01:32]} 23. f7+ {[%emt 0:03:37]} Rxf7 {[%emt 0:02:00]} 24. Qg5 {[%emt 0:03:28]} Kh8 {[%emt 0:02:47]} 25. Nf3 {[%emt 0:05:22]} Qe7 {[%emt 0:03:08]} 26. Nge5 {[%emt 0:03:25]} Rg7 {[%emt 0:01:10]} 27. Qg2 {[%emt 0:04:01]} Nd7 {[%emt 0:02:16]} 28. Kh1 {[%emt 0:04:01]} Nf8 {[%emt 0:01:57]} 29. Rg1 {[%emt 0:01:19]} Kg8 {[%emt 0:01:18]} 30. Qf1 {[%emt 0:03:35]} Nd7 {[%emt 0:02:40]} 31. Nxd7 {[%emt 0:01:41]} Qxd7 {[%emt 0:00:20]} 32. Qe1 {[%emt 0:00:38]} Qd6 {[%emt 0:03:13]} 33. Qe5 {[%emt 0:00:34]} Qxe5 {[%emt 0:00:33]} 34. fxe5 {[%emt 0:00:16]} Rcc7 {[%emt 0:03:35]} 35. Rd1 {[%emt 0:01:19]} Rc8 {[%emt 0:00:47]} 36. Kg1 {[%emt 0:00:36]} Rgc7 {[%emt 0:00:23]} 37. Kf1 {[%emt 0:00:10]} Re7 {[%emt 0:07:42]} 38. Ke2 {[%emt 0:01:17]} Kg7 {[%emt 0:01:38]} 39. Kd2 {[%emt 0:01:07]} h6 {[%emt 0:00:20]} 40. Bxf5 {[%emt 0:02:27]} gxf5 {[%emt 0:00:21]} 41. Rg1+ {[%emt 0:31:08]} Kf8 {[%emt 0:33:14]} 42. Rxh6 {[%emt 0:00:00]} Rec7 {[%emt 0:00:00]} 43. Rf6+ {[%emt 0:00:00]} Ke7 {[%emt 0:00:00]} 44. Rg7+ {[%emt 0:00:00]} Ke8 {[%emt 0:00:00]} 45. Rxe6+ {[%emt 0:00:00]} Kf8 {[%emt 0:00:00]} 46. Rxc7 {[%emt 0:00:00]} Rxc7 {[%emt 0:00:00]} 47. Ng5 {[%emt 0:00:00]} Rg7 {[%emt 0:00:00]} 48. f4 {[%emt 0:00:00]} Rc7 {[%emt 0:00:00]} 49. b3 {[%emt 0:00:00]} b5 {[%emt 0:00:00]} 50. h4 {[%emt 0:00:00]} a5 {[%emt 0:00:00]} 51. Rb6 {[%emt 0:00:00]} Bc8 {[%emt 0:00:00]} 52. Rxb5 {[%emt 0:00:00]} Rc6 {[%emt 0:00:00]} 53. Rxa5 {[%emt 0:00:00]} Rh6 {[%emt 0:00:00]} 54. Ra8 {[%emt 0:00:00]} Rc6 {[%emt 0:00:00]} 55. h5 {[%emt 0:00:00]} 1-0

[Event "FIDE Open Sachove Univerzity QCC"]
[Site "Ceske Budejovice"]
[Date "2020.07.02"]
[Round "2.19"]
[White "Jodas, Daniel"]
[Black "Dobsinsky, Petr"]
[Result "1/2-1/2"]
[ECO "B12"]
[WhiteElo "1608"]
[BlackElo "1248"]
[Annotator "NA"]
[PlyCount "64"]
[EventDate "2020.07.01"]
[EventType "swiss"]
[EventCountry "CZE"]
[SourceTitle "playchess.com"]
[Source "ChessBase"]
[SourceQuality "1"]
[TimeControl "40/5400+30:1800+30"]

1. e4 {[%emt 0:00:00]} c6 {[%emt 0:00:00]} 2. d4 {[%emt 0:00:14]} d5 {[%emt 0:00:01]} 3. e5 {[%emt 0:01:23]} Bf5 {[%emt 0:00:27]} 4. Nf3 {[%emt 0:01:13]} e6 {[%emt 0:00:31]} 5. Bd3 {[%emt 0:01:14]} Bxd3 {[%emt 0:00:34]} 6. Qxd3 {[%emt 0:00:03]} Nd7 {[%emt 0:00:19]} 7. O-O {[%emt 0:02:47]} h6 {[%emt 0:02:05]} 8. Nbd2 {[%emt 0:01:46]} Ne7 {[%emt 0:00:51]} 9. c4 {[%emt 0:04:29]} c5 {[%emt 0:00:38]} 10. cxd5 {[%emt 0:07:51]} Nxd5 {[%emt 0:00:57]} 11. Ne4 {[%emt 0:05:49]} Qc7 {[%emt 0:04:32]} 12. dxc5 {[%emt 0:06:57]} Nxc5 {[%emt 0:01:17]} 13. Nxc5 {[%emt 0:02:04]} Bxc5 {[%emt 0:02:32]} 14. Qb5+ {[%emt 0:00:52]} Ke7 {[%emt 0:03:05]} 15. Bd2 {[%emt 0:00:53]} Qb6 {[%emt 0:01:33]} 16. Qa4 {[%emt 0:02:50]} Bb4 {[%emt 0:02:30]} 17. Rac1 {[%emt 0:28:57]} Bxd2 {[%emt 0:03:30]} 18. Nxd2 {[%emt 0:00:13]} Rhc8 {[%emt 0:00:11]} 19. Qh4+ {[%emt 0:15:47]} Kf8 {[%emt 0:01:01]} 20. Nb3 {[%emt 0:03:38]} Qd8 {[%emt 0:01:08]} 21. Qe4 {[%emt 0:01:36]} Kg8 {[%emt 0:04:06]} 22. f4 {[%emt 0:02:49]} Rxc1 {[%emt 0:02:08]} 23. Rxc1 {[%emt 0:00:31]} Rc8 {[%emt 0:01:05]} 24. Rxc8 {[%emt 0:00:42]} Qxc8 {[%emt 0:00:05]} 25. f5 {[%emt 0:00:41]} b6 {[%emt 0:05:26]} 26. Kf2 {[%emt 0:02:43]} Ne7 {[%emt 0:01:49]} 27. fxe6 {[%emt 0:02:36]} Qxe6 {[%emt 0:00:29]} 28. Qa8+ {[%emt 0:00:23]} Kh7 {[%emt 0:00:10]} 29. Qxa7 {[%emt 0:00:09]} Qf5+ {[%emt 0:01:08]} 30. Ke2 {[%emt 0:02:21]} Qxe5+ {[%emt 0:00:37]} 31. Kd3 {[%emt 0:00:02]} Qb5+ {[%emt 0:00:44]} 32. Kc2 {[%emt 0:00:30]} Qf5+ {[%emt 0:00:43]} 1/2-1/2

[Event "FIDE Open Sachove Univerzity QCC"]
[Site "Ceske Budejovice"]
[Date "2020.07.02"]
[Round "2.20"]
[White "Krautschneider, Daniel Jan"]
[Black "Svetly, Jiri"]
[Result "0-1"]
[ECO "B70"]
[WhiteElo "1374"]
[BlackElo "1835"]
[Annotator "NA"]
[PlyCount "78"]
[EventDate "2020.07.01"]
[EventType "swiss"]
[EventCountry "CZE"]
[SourceTitle "playchess.com"]
[Source "ChessBase"]
[SourceQuality "1"]
[TimeControl "40/5400+30:1800+30"]

1. e4 {[%emt 0:00:00]} d6 {[%emt 0:00:22]} 2. d4 {[%emt 0:00:00]} Nf6 {[%emt 0:00:08]} 3. Nc3 {[%emt 0:00:14]} g6 {[%emt 0:00:08]} 4. g3 {[%emt 0:00:25]} Bg7 {[%emt 0:00:57]} 5. Bg2 {[%emt 0:00:09]} O-O {[%emt 0:00:36]} 6. Nge2 {[%emt 0:00:08]} c5 {[%emt 0:02:38]} 7. O-O {[%emt 0:00:12]} cxd4 {[%emt 0:01:16]} 8. Nxd4 {[%emt 0:00:10]} Nc6 {[%emt 0:00:20]} 9. Nxc6 {[%emt 0:00:41]} bxc6 {[%emt 0:00:20]} 10. h3 {[%emt 0:00:29] [#] B70: Sicilian Dragon: 6 g3 and 6 Be2 (without a later Be3).} Qb6 $146 {[%emt 0:04:54]} ({Predecessor:} 10... Bb7 11. Kh2 c5 12. f4 Qc7 13. Qe2 e6 14. Bd2 d5 15. e5 Nd7 16. Nb5 Qb6 17. c4 Bc6 {0-1 (46) Jakubowska,A (2073)-Gaponenko,I (2396) chess.com INT 2020}) 11. Kh2 {[%emt 0:02:24]} Ba6 {[%emt 0:02:27]} 12. Re1 {[%emt 0:00:12]} Nh5 {[%emt 0:04:10]} 13. Qf3 {[%emt 0:20:26]} Rad8 {[%emt 0:06:41]} 14. Kh1 {[%emt 0:03:04]} Bb7 {[%emt 0:04:33]} 15. g4 {[%emt 0:00:24]} Nf6 {[%emt 0:00:41]} 16. b3 {[%emt 0:10:00]} Nd7 {[%emt 0:02:15]} 17. Bd2 {[%emt 0:03:31]} e6 {[%emt 0:03:28]} 18. Rad1 {[%emt 0:01:44]} d5 {[%emt 0:03:53]} 19. Qg3 {[%emt 0:02:31]} Nc5 {[%emt 0:17:55]} 20. e5 {[%emt 0:01:28]} d4 {[%emt 0:02:17]} 21. Ne4 {[%emt 0:00:31]} Nxe4 {[%emt 0:00:31]} 22. Bxe4 {[%emt 0:03:51]} c5 {[%emt 0:00:30]} 23. Qg2 {[%emt 0:00:30]} Ba6 {[%emt 0:01:59]} 24. f4 {[%emt 0:01:05]} f6 {[%emt 0:02:04]} 25. f5 {[%emt 0:02:46]} g5 {[%emt 0:14:26]} 26. exf6 $16 {[%emt 0:01:24]} Bxf6 {[%emt 0:00:31]} 27. fxe6 {[%emt 0:00:13]} Kg7 {[%emt 0:01:30]} 28. Kg1 {[%emt 0:02:24]} c4 {[%emt 0:06:02]} 29. Kh1 {[%emt 0:07:42]} Rfe8 {[%emt 0:03:29]} 30. Bc6 {[%emt 0:06:15]} Re7 {[%emt 0:01:18]} 31. h4 {[%emt 0:11:20]} h6 {[%emt 0:00:42]} 32. h5 {[%emt 0:01:48]} Rd6 {[%emt 0:00:38]} 33. Bf3 {[%emt 0:01:08]} c3 {[%emt 0:02:23]} 34. Bc1 {[%emt 0:00:15]} Rdxe6 {[%emt 0:00:26]} 35. Rxe6 {[%emt 0:01:21]} Qxe6 {[%emt 0:01:21]} 36. Ba3 {[%emt 0:01:15]} Qe1+ {[%emt 0:02:18]} 37. Rxe1 {[%emt 0:00:43]} Rxe1+ {[%emt 0:00:15]} 38. Kh2 {[%emt 0:00:08]} Be5+ {[%emt 0:00:16]} 39. Kh3 {[%emt 0:01:25]} Bf1 {[%emt 0:00:17]} 0-1

[Event "FIDE Open Sachove Univerzity QCC"]
[Site "Ceske Budejovice"]
[Date "2020.07.02"]
[Round "2.21"]
[White "Sobotka, Radim"]
[Black "Barta, David"]
[Result "1/2-1/2"]
[ECO "C34"]
[WhiteElo "1764"]
[BlackElo "1541"]
[Annotator "NA"]
[PlyCount "100"]
[EventDate "2020.07.01"]
[EventType "swiss"]
[EventCountry "CZE"]
[SourceTitle "playchess.com"]
[Source "ChessBase"]
[SourceQuality "1"]
[TimeControl "40/5400+30:1800+30"]

1. e4 {[%emt 0:00:00]} e5 {[%emt 0:00:00]} 2. f4 {[%emt 0:00:00]} Nc6 {[%emt 0:00:34]} 3. Nf3 {[%emt 0:00:00]} exf4 {[%emt 0:01:31]} 4. Bc4 {[%emt 0:00:36]} d6 {[%emt 0:01:53]} 5. d4 {[%emt 0:00:39]} g5 {[%emt 0:01:33]} 6. h4 {[%emt 0:00:41]} f6 {[%emt 0:02:03]} 7. Nc3 {[%emt 0:14:14]} Bg4 {[%emt 0:01:46]} 8. d5 {[%emt 0:16:22]} Ne5 {[%emt 0:07:00]} 9. Bb5+ {[%emt 0:08:00]} Bd7 {[%emt 0:00:53]} 10. Nxe5 {[%emt 0:06:06]} fxe5 {[%emt 0:08:11]} 11. Qh5+ {[%emt 0:00:26]} Ke7 {[%emt 0:00:20]} 12. hxg5 {[%emt 0:03:35]} Qe8 {[%emt 0:01:55]} 13. Be2 {[%emt 0:04:37]} Qxh5 {[%emt 0:00:29]} 14. Bxh5 {[%emt 0:00:21]} h6 {[%emt 0:00:53]} 15. Bg6 {[%emt 0:01:43]} Bg7 {[%emt 0:00:58]} 16. gxh6 {[%emt 0:02:41]} Rxh6 {[%emt 0:00:14]} 17. Rxh6 {[%emt 0:00:12]} Bxh6 {[%emt 0:00:04]} 18. Bh5 {[%emt 0:06:18]} Nf6 {[%emt 0:00:09]} 19. Bf3 {[%emt 0:00:06]} Bg5 {[%emt 0:00:14]} 20. Bd2 {[%emt 0:00:50]} Bh4+ {[%emt 0:00:11]} 21. Ke2 {[%emt 0:00:22]} Kf7 {[%emt 0:01:32]} 22. Be1 {[%emt 0:03:01]} Rh8 {[%emt 0:00:50]} 23. Kd3 {[%emt 0:01:14]} Kg6 {[%emt 0:00:28]} 24. Bxh4 {[%emt 0:02:19]} Rxh4 {[%emt 0:00:06]} 25. Rg1 {[%emt 0:01:04]} Nh5 {[%emt 0:01:36]} 26. Ne2 {[%emt 0:01:30]} Ng3 {[%emt 0:01:31]} 27. c4 {[%emt 0:02:47]} Nxe2 {[%emt 0:02:30]} 28. Kxe2 {[%emt 0:00:09]} Bg4 {[%emt 0:00:10]} 29. Kd3 {[%emt 0:03:01]} Kh5 {[%emt 0:01:15]} 30. Ke2 {[%emt 0:08:51]} Rh2 {[%emt 0:00:50]} 31. Kf2 {[%emt 0:00:34]} Bxf3 {[%emt 0:01:10]} 32. Kxf3 {[%emt 0:00:08]} Kg5 {[%emt 0:00:13]} 33. b4 {[%emt 0:02:09]} Rh8 {[%emt 0:01:19]} 34. a4 {[%emt 0:00:58]} Rh4 {[%emt 0:03:36]} 35. g3 {[%emt 0:05:04]} Rh3 {[%emt 0:03:05]} 36. Rg2 {[%emt 0:04:18]} Kh5 {[%emt 0:02:50]} 37. Rg1 {[%emt 0:00:01]} Rxg3+ {[%emt 0:02:42]} 38. Rxg3 {[%emt 0:00:03]} fxg3 {[%emt 0:00:08]} 39. Kxg3 {[%emt 0:00:01]} a5 {[%emt 0:01:06]} 40. bxa5 {[%emt 0:01:43]} Kg5 {[%emt 0:00:17]} 41. a6 {[%emt 0:32:29]} bxa6 {[%emt 0:30:02]} 42. a5 {[%emt 0:00:24]} Kf6 {[%emt 0:01:56]} 43. Kh4 {[%emt 0:00:00]} Ke7 {[%emt 0:00:00]} 44. Kg5 {[%emt 0:00:00]} Kd7 {[%emt 0:00:00]} 45. Kf6 {[%emt 0:00:00]} Kd8 {[%emt 0:00:00]} 46. Kf5 {[%emt 0:00:00]} Ke7 {[%emt 0:00:00]} 47. Kg5 {[%emt 0:00:00]} Kf7 {[%emt 0:00:00]} 48. Kf5 {[%emt 0:00:00]} Ke7 {[%emt 0:00:00]} 49. Kg6 {[%emt 0:00:00]} Ke8 {[%emt 0:00:00]} 50. Kf6 {[%emt 0:00:00]} Kf8 {[%emt 0:00:00]} 1/2-1/2

[Event "FIDE Open Sachove Univerzity QCC"]
[Site "Ceske Budejovice"]
[Date "2020.07.02"]
[Round "2.22"]
[White "Predota, Vit"]
[Black "Huemer, Gerald"]
[Result "0-1"]
[ECO "B51"]
[WhiteElo "1233"]
[BlackElo "1721"]
[Annotator "NA"]
[PlyCount "49"]
[EventDate "2020.07.01"]
[EventType "swiss"]
[EventCountry "CZE"]
[SourceTitle "playchess.com"]
[Source "ChessBase"]
[SourceQuality "1"]
[TimeControl "40/5400+30:1800+30"]

1. e4 {[%emt 0:00:00]} c5 {[%emt 0:00:00]} 2. Nf3 {[%emt 0:00:20]} d6 {[%emt 0:00:00]} 3. Bb5+ {[%emt 0:00:28]} Nd7 {[%emt 0:00:19]} 4. d4 {[%emt 0:00:47]} cxd4 {[%emt 0:00:27]} 5. Bxd7+ {[%emt 0:01:19]} Bxd7 {[%emt 0:00:24]} 6. Qxd4 {[%emt 0:01:27]} Qc7 {[%emt 0:01:48]} 7. Nc3 {[%emt 0:00:34]} e5 {[%emt 0:01:32]} 8. Qd5 {[%emt 0:06:43]} Nf6 {[%emt 0:00:31]} 9. Qb3 {[%emt 0:00:29]} Bc6 {[%emt 0:01:31]} 10. Qc4 {[%emt 0:01:42]} Rc8 {[%emt 0:00:18]} 11. Nd5 {[%emt 0:02:05]} Bxd5 {[%emt 0:01:38]} 12. exd5 {[%emt 0:01:18]} Qxc4 {[%emt 0:01:47]} 13. c3 {[%emt 0:00:44]} Nxd5 {[%emt 0:01:36]} 14. Bd2 {[%emt 0:00:20]} Be7 {[%emt 0:02:03]} 15. b3 {[%emt 0:00:14]} Qe4+ {[%emt 0:00:36]} 16. Kf1 {[%emt 0:00:38]} O-O {[%emt 0:01:04]} 17. c4 {[%emt 0:00:28]} Nf4 {[%emt 0:01:15]} 18. Re1 {[%emt 0:02:13]} Qd3+ {[%emt 0:01:33]} 19. Kg1 {[%emt 0:00:15]} Ne2+ {[%emt 0:00:16]} 20. Kf1 {[%emt 0:01:12]} Ng3+ {[%emt 0:00:13]} 21. Kg1 {[%emt 0:00:24]} Nxh1 {[%emt 0:00:08]} 22. Kxh1 {[%emt 0:00:22]} e4 {[%emt 0:00:22]} 23. Re3 {[%emt 0:01:21]} Qxe3 {[%emt 0:00:27]} 24. Bxe3 {[%emt 0:00:14]} exf3 {[%emt 0:00:06]} 25. gxf3 {[%emt 0:00:18]} 0-1

[Event "FIDE Open Sachove Univerzity QCC"]
[Site "Ceske Budejovice"]
[Date "2020.07.02"]
[Round "2.23"]
[White "Karweit, Alex W"]
[Black "Cipera, Josef"]
[Result "1-0"]
[ECO "B90"]
[WhiteElo "1579"]
[BlackElo "1612"]
[Annotator "NA"]
[PlyCount "59"]
[EventDate "2020.07.01"]
[EventType "swiss"]
[EventCountry "CZE"]
[SourceTitle "playchess.com"]
[Source "ChessBase"]
[SourceQuality "1"]
[TimeControl "40/5400+30:1800+30"]

1. e4 {[%emt 0:00:00]} c5 {[%emt 0:00:00]} 2. Nf3 {[%emt 0:00:00]} a6 {[%emt 0:00:00]} 3. d4 {[%emt 0:00:00]} cxd4 {[%emt 0:00:00]} 4. Nxd4 {[%emt 0:00:00]} d6 {[%emt 0:00:06]} 5. Nc3 {[%emt 0:00:27]} e5 {[%emt 0:00:12]} 6. Nb3 {[%emt 0:00:52]} Be6 {[%emt 0:00:07]} 7. Be3 {[%emt 0:03:28]} Nf6 {[%emt 0:03:42]} 8. Bd3 {[%emt 0:05:28]} Be7 {[%emt 0:01:33]} 9. h3 {[%emt 0:01:51]} b5 {[%emt 0:01:12]} 10. a4 {[%emt 0:05:18]} b4 {[%emt 0:04:20]} 11. Ne2 {[%emt 0:07:30]} Nc6 {[%emt 0:03:08]} 12. O-O {[%emt 0:06:57]} O-O {[%emt 0:07:19]} 13. f4 {[%emt 0:06:31]} exf4 {[%emt 0:02:37]} 14. Nxf4 {[%emt 0:01:06]} Qd7 {[%emt 0:07:23]} 15. Nd4 {[%emt 0:07:02]} Ne5 {[%emt 0:01:41]} 16. Nfxe6 {[%emt 0:11:26]} fxe6 {[%emt 0:00:17]} 17. Rc1 {[%emt 0:03:04]} Nc6 {[%emt 0:05:54]} 18. c3 {[%emt 0:05:58]} Nxd4 {[%emt 0:02:00]} 19. cxd4 {[%emt 0:02:11]} Qb7 {[%emt 0:01:41]} 20. e5 {[%emt 0:03:07]} Nd5 {[%emt 0:08:11]} 21. Bd2 {[%emt 0:06:21]} Rxf1+ {[%emt 0:02:43]} 22. Qxf1 {[%emt 0:00:23]} Rf8 {[%emt 0:01:52]} 23. Qe2 {[%emt 0:01:02]} Nf4 {[%emt 0:02:12]} 24. Bxf4 {[%emt 0:01:14]} Rxf4 {[%emt 0:00:10]} 25. exd6 {[%emt 0:00:42]} Bf8 {[%emt 0:06:12]} 26. Qxe6+ {[%emt 0:01:01]} Qf7 {[%emt 0:03:17]} 27. Bc4 {[%emt 0:01:24]} Qxe6 {[%emt 0:01:02]} 28. Bxe6+ {[%emt 0:00:08]} Kh8 {[%emt 0:00:17]} 29. d7 {[%emt 0:00:32]} Be7 {[%emt 0:03:04]} 30. Rc8+ {[%emt 0:00:12]} 1-0

[Event "FIDE Open Sachove Univerzity QCC"]
[Site "Ceske Budejovice"]
[Date "2020.07.02"]
[Round "2.24"]
[White "Bastyr, Pavel"]
[Black "Janouskova, Adela"]
[Result "0-1"]
[ECO "D53"]
[WhiteElo "1439"]
[BlackElo "1377"]
[Annotator "NA"]
[PlyCount "26"]
[EventDate "2020.07.01"]
[EventType "swiss"]
[EventCountry "CZE"]
[SourceTitle "playchess.com"]
[Source "ChessBase"]
[SourceQuality "1"]
[TimeControl "40/5400+30:1800+30"]

1. d4 {[%emt 0:00:00]} d5 {[%emt 0:00:00]} 2. c4 {[%emt 0:00:00]} e6 {[%emt 0:00:00]} 3. Nc3 {[%emt 0:00:00]} Nf6 {[%emt 0:00:00]} 4. Bg5 {[%emt 0:00:00]} Be7 {[%emt 0:00:04]} 5. e3 {[%emt 0:00:10]} O-O {[%emt 0:00:11]} 6. Nf3 {[%emt 0:00:06]} c5 {[%emt 0:01:10]} 7. Bd3 {[%emt 0:02:11]} Nc6 {[%emt 0:01:09]} 8. dxc5 {[%emt 0:01:40]} dxc4 {[%emt 0:06:55]} 9. Bxc4 {[%emt 0:00:19]} Qa5 {[%emt 0:02:34]} 10. O-O {[%emt 0:00:44]} Qxc5 {[%emt 0:01:38]} 11. Bxf6 {[%emt 0:02:09]} Bxf6 {[%emt 0:00:21]} 12. Qb3 {[%emt 0:00:29]} Na5 {[%emt 0:01:04]} 13. Ne4 {[%emt 0:02:29]} Nxb3 {[%emt 0:02:22]} 0-1